bitfinex/quotes_BTCUSD_20250219
["timestamp","ask_amount","ask_price","bid_price","bid_amount"]
[1739945868402,0.15,95501.0,95496.0,0.0831512]
[1739945868679,0.01641265,95498.0,95496.0,0.0831512]
[1739945869308,0.01641265,95498.0,95496.0,0.0861512]
[1739945869755,0.01641265,95498.0,95496.0,0.0831512]
[1739945871144,0.01641265,95498.0,95496.0,0.0861512]
[1739945871369,0.01641265,95498.0,95496.0,0.0831512]
[1739945871762,0.01641265,95498.0,95496.0,0.0861512]
[1739945871964,0.01641265,95498.0,95496.0,0.0831512]
[1739945872386,0.01641265,95498.0,95496.0,0.0871512]
[1739945873170,0.15,95502.0,95496.0,0.0871512]
[1739945873734,0.15,95502.0,95496.0,0.0777462]
[1739945874240,0.15,95502.0,95496.0,0.0737462]
[1739945874559,0.15,95504.0,95496.0,0.0767462]
[1739945874713,0.157064,95502.0,95496.0,0.0767462]
[1739945875105,0.15,95504.0,95496.0,0.0767462]
[1739945875309,0.15,95504.0,95496.0,0.0737462]
[1739945875810,0.15,95502.0,95496.0,0.0737462]
[1739945876331,0.15,95502.0,95496.0,0.0757462]
[1739945876487,0.307065,95502.0,95496.0,0.0757462]
[1739945877308,0.15,95505.0,95496.0,0.0757462]
[1739945877547,0.01641255,95501.0,95496.0,0.0737462]
[1739945877976,0.01641255,95501.0,95496.0,0.0757462]
[1739945878188,0.01641255,95501.0,95496.0,0.2308192]
[1739945878387,0.01683825,95501.0,95500.0,0.157068]
[1739945879032,0.01683825,95501.0,95496.0,0.0747462]
[1739945879241,0.01683825,95501.0,95499.0,0.157069]
[1739945879452,0.01683825,95501.0,95497.0,0.20943]
[1739945879636,0.01683825,95501.0,95499.0,0.157069]
[1739945880612,0.01683825,95501.0,95500.0,0.003]
[1739945880816,0.01683825,95501.0,95500.0,0.157068]
[1739945881019,0.01683825,95501.0,95500.0,0.284968]
[1739945881474,0.01683825,95501.0,95500.0,0.37080498]
[1739945881833,0.01683825,95501.0,95500.0,0.37380498]
[1739945882882,0.0004257,95501.0,95500.0,0.37380498]
[1739945883915,0.0004257,95501.0,95500.0,0.37080498]
[1739945884117,0.0004257,95501.0,95500.0,0.37380498]
[1739945884506,0.0004257,95501.0,95500.0,0.37080498]
[1739945884677,0.0004257,95501.0,95500.0,0.37380498]
[1739945885126,0.0004257,95501.0,95500.0,0.37080498]
[1739945885329,0.0004257,95501.0,95500.0,0.37380498]
[1739945885757,0.0004257,95501.0,95500.0,0.37080498]
[1739945887018,0.0004257,95501.0,95500.0,0.37380498]
[1739945887353,0.01683737,95501.0,95500.0,0.37080498]
[1739945887561,0.01683737,95501.0,95500.0,0.37380498]
[1739945887979,0.01683737,95501.0,95500.0,0.37080498]
[1739945888186,0.01683737,95501.0,95500.0,0.37380498]
[1739945888550,0.01683737,95501.0,95500.0,0.37080498]
[1739945888857,0.01683737,95501.0,95500.0,0.37380498]
[1739945890067,0.01683737,95501.0,95500.0,0.37465638]
[1739945893257,0.0004257,95501.0,95500.0,0.37465638]
[1739945894551,0.0004257,95501.0,95500.0,0.39425228]
[1739945896123,0.0168369,95501.0,95500.0,0.39425228]
[1739945900095,0.0168369,95501.0,95500.0,0.37465638]
[1739945903282,0.0004257,95501.0,95500.0,0.37465638]
[1739945906661,0.17390306,95501.0,95500.0,0.0038514]
[1739945907649,0.17390306,95501.0,95500.0,0.0008514]
[1739945908044,0.209392,95515.0,95500.0,0.0028514]
[1739945908367,0.17347827,95501.0,95500.0,0.0008514]
[1739945908567,0.157066,95501.0,95500.0,0.0028514]
[1739945908900,0.01641227,95501.0,95500.0,0.0008514]
[1739945910696,0.01641227,95501.0,95500.0,0.0028514]
[1739945912841,0.01683777,95501.0,95500.0,0.0028514]
[1739945913199,0.0004255,95501.0,95500.0,0.0028514]
[1739945915118,0.1504255,95501.0,95500.0,0.0028514]
[1739945915345,0.3074915,95501.0,95500.0,0.0028514]
[1739945916377,0.32390411,95501.0,95500.0,0.0028514]
[1739945916587,0.32390411,95501.0,95500.0,0.0008514]
[1739945922044,0.3074915,95501.0,95500.0,0.0008514]
[1739945927120,0.3871915,95501.0,95500.0,0.0008514]
[1739945927681,0.3074915,95501.0,95500.0,0.0008514]
[1739945928839,0.3114915,95501.0,95500.0,0.0008514]
[1739945932084,0.32790564,95501.0,95500.0,0.0008514]
[1739945933225,0.3114915,95501.0,95500.0,0.0008514]
[1739945934489,0.3074915,95501.0,95500.0,0.0008514]
[1739945934713,0.3114915,95501.0,95500.0,0.0008514]
[1739945935433,0.004,95501.0,95500.0,0.0008514]
[1739945935799,0.161066,95501.0,95500.0,0.0008514]
[1739945936540,0.17747971,95501.0,95500.0,0.0008514]
[1739945937104,0.17347971,95501.0,95500.0,0.0008514]
[1739945937350,0.17747971,95501.0,95500.0,0.0008514]
[1739945941180,0.32747971,95501.0,95500.0,0.0008514]
[1739945943261,0.32347971,95501.0,95500.0,0.0008514]
[1739945943565,0.32647971,95501.0,95500.0,0.0008514]
[1739945946155,0.32347971,95501.0,95500.0,0.0008514]
[1739945946370,0.32647971,95501.0,95500.0,0.0008514]
[1739945948403,0.310066,95501.0,95500.0,0.0008514]
[1739945949622,0.3074915,95501.0,95500.0,0.0008514]
[1739945949981,0.3104915,95501.0,95500.0,0.0008514]
[1739945950661,0.3114915,95501.0,95500.0,0.0008514]
[1739945950866,0.3074915,95501.0,95500.0,0.0008514]
[1739945951074,0.3084915,95501.0,95500.0,0.0008514]
[1739945951437,0.32490445,95501.0,95500.0,0.0008514]
[1739945952646,0.32390445,95501.0,95500.0,0.0008514]
[1739945952852,0.32490445,95501.0,95500.0,0.0008514]
[1739945956712,0.01783845,95501.0,95500.0,0.0008514]
[1739945956867,0.1584915,95501.0,95500.0,0.0008514]
[1739945959884,0.17490445,95501.0,95500.0,0.0008514]
[1739945966666,0.1584915,95501.0,95500.0,0.0008514]
[1739945969587,0.17490445,95501.0,95500.0,0.0008514]
[1739945973830,0.209406,95508.0,95500.0,0.0008514]
[1739945974129,0.1734795,95501.0,95500.0,0.0008514]
[1739945974319,0.157066,95501.0,95500.0,0.0008514]
[1739945975748,0.158066,95501.0,95500.0,0.0008514]
[1739945977436,0.001,95501.0,95500.0,0.0008514]
[1739945977643,0.158066,95501.0,95500.0,0.0008514]
[1739945978511,0.17447897,95501.0,95500.0,0.0008514]
[1739945983236,0.158066,95501.0,95500.0,0.0008514]
[1739945985113,0.1584915,95501.0,95500.0,0.0008514]
[1739945986194,0.17490445,95501.0,95500.0,0.0008514]
[1739945987545,0.157066,95501.0,95500.0,0.0008514]
[1739945987746,0.17347906,95501.0,95500.0,0.0008514]
[1739945993172,0.157066,95501.0,95500.0,0.0008514]
[1739945994371,0.209413,95505.0,95500.0,0.0008514]
[1739945994575,0.157066,95501.0,95500.0,0.0008514]
[1739945996678,0.17347938,95501.0,95500.0,0.0008514]
[1739946004457,0.0004255,95504.0,95500.0,0.0008514]
[1739946004665,0.17347965,95501.0,95500.0,0.0008514]
[1739946004802,0.157066,95501.0,95500.0,0.0008514]
[1739946007918,0.17347916,95501.0,95500.0,0.0008514]
[1739946008986,0.157066,95501.0,95500.0,0.0008514]
[1739946016953,0.17347916,95501.0,95500.0,0.0008514]
[1739946022099,0.17447916,95501.0,95500.0,0.0008514]
[1739946022514,0.17347916,95501.0,95500.0,0.0008514]
[1739946023315,0.157066,95501.0,95500.0,0.0008514]
[1739946026415,0.17347916,95501.0,95500.0,0.0008514]
[1739946028025,0.17447916,95501.0,95500.0,0.0008514]
[1739946028535,0.17347916,95501.0,95500.0,0.0008514]
[1739946028733,0.17347916,95501.0,95500.0,0.0018514]
[1739946029456,0.17347916,95501.0,95500.0,0.0008514]
[1739946033370,0.157066,95501.0,95500.0,0.0008514]
[1739946034461,0.158066,95501.0,95500.0,0.0008514]
[1739946034621,0.157066,95501.0,95500.0,0.0008514]
[1739946036391,0.17347896,95501.0,95500.0,0.0008514]
[1739946038047,0.17447896,95501.0,95500.0,0.0008514]
[1739946038869,0.17347896,95501.0,95500.0,0.0008514]
[1739946043273,0.157066,95501.0,95500.0,0.0008514]
[1739946044658,0.0004255,95503.0,95500.0,0.0008514]
[1739946044859,0.157066,95501.0,95500.0,0.0008514]
[1739946046411,0.17347896,95501.0,95500.0,0.0008514]
[1739946048235,0.17347896,95501.0,95500.0,0.00024487]
[1739946053301,0.157066,95501.0,95500.0,0.00024487]
[1739946054027,0.160066,95501.0,95500.0,0.00124487]
[1739946054525,0.0004255,95504.0,95500.0,0.00024487]
[1739946054741,0.003,95501.0,95500.0,0.00024487]
[1739946055338,0.0004255,95504.0,95500.0,0.00024487]
[1739946055844,0.157066,95501.0,95500.0,0.00024487]
[1739946056529,0.17347896,95501.0,95500.0,0.00024487]
[1739946056729,0.17347896,95501.0,95500.0,0.00124487]
[1739946056915,0.17347896,95501.0,95500.0,0.00024487]
[1739946057894,0.17647896,95501.0,95500.0,0.00024487]
[1739946058172,0.0004255,95503.0,95500.0,0.00024487]
[1739946058564,0.17347926,95501.0,95500.0,0.00024487]
[1739946058927,0.01641326,95501.0,95500.0,0.00024487]
[1739946059131,0.01641326,95501.0,95500.0,0.20351287]
[1739946061959,0.01641326,95501.0,95500.0,0.27901287]
[1739946062077,0.01641326,95501.0,95500.0,0.38151652]
[1739946062974,0.01641326,95501.0,95500.0,0.40113474]
[1739946063360,0.0004255,95503.0,95502.0,0.281164]
[1739946063560,0.0004255,95503.0,95502.0,0.38366765]
[1739946065045,0.0004255,95503.0,95502.0,0.38566765]
[1739946066290,0.01683711,95503.0,95502.0,0.38566765]
[1739946069128,0.01683711,95503.0,95502.0,0.1261]
[1739946069337,0.01683711,95503.0,95502.0,0.0506]
[1739946069531,0.01683711,95503.0,95502.0,0.002]
[1739946070017,0.01683711,95503.0,95500.0,0.00024487]
[1739946070564,0.157065,95502.0,95500.0,0.00024487]
[1739946071475,0.01683711,95503.0,95500.0,0.00024487]
[1739946071950,0.17390011,95503.0,95500.0,0.00024487]
[1739946073221,0.1574885,95503.0,95500.0,0.00024487]
[1739946073388,0.0004255,95503.0,95500.0,0.00024487]
[1739946074560,0.1574895,95503.0,95500.0,0.00024487]
[1739946075345,0.157064,95502.0,95500.0,0.00024487]
[1739946076274,0.157066,95501.0,95500.0,0.00024487]
[1739946078809,0.14164293,95501.0,95500.0,0.00024487]
[1739946086533,0.1580561,95501.0,95500.0,0.00024487]
[1739946092441,0.29164293,95501.0,95500.0,0.00024487]
[1739946093822,0.2098435,95503.0,95500.0,0.00024487]
[1739946094858,0.157066,95501.0,95500.0,0.00024487]
[1739946096050,0.17347617,95501.0,95500.0,0.00024487]
[1739946097667,0.01641017,95501.0,95500.0,0.00024487]
[1739946102505,0.01641017,95501.0,95500.0,0.07644487]
[1739946102506,0.01683567,95501.0,95500.0,0.07644487]
[1739946103317,0.0004255,95501.0,95500.0,0.07644487]
[1739946103617,0.0004255,95501.0,95500.0,0.0774919]
[1739946103801,0.0004255,95501.0,95500.0,0.1251919]
[1739946103998,0.15,95523.0,95501.0,0.0822]
[1739946104231,0.209382,95519.0,95509.0,0.0822]
[1739946104474,0.157044,95515.0,95509.0,0.0822]
[1739946105017,0.0004256,95539.0,95510.0,0.049]
[1739946105242,0.17300803,95520.0,95512.0,0.157046]
[1739946105390,0.209378,95521.0,95510.0,0.049]
[1739946105599,0.00788565,95534.0,95512.0,0.157047]
[1739946105899,0.157032,95522.0,95514.0,0.157044]
[1739946106062,0.157035,95520.0,95510.0,0.049]
[1739946106261,0.17344494,95519.0,95511.0,0.157049]
[1739946106981,0.01640794,95519.0,95510.0,0.049]
[1739946107210,0.01640794,95519.0,95512.0,0.209397]
[1739946107422,0.01640794,95519.0,95510.0,0.258401]
[1739946107618,0.01640794,95519.0,95510.0,0.049]
[1739946107966,0.01640794,95519.0,95515.0,0.157042]
[1739946108347,0.01640794,95519.0,95511.0,0.209399]
[1739946108549,0.01640794,95519.0,95512.0,0.157048]
[1739946108754,0.01640794,95519.0,95510.0,0.049]
[1739946108956,0.01640794,95519.0,95515.0,0.157042]
[1739946109295,0.01640794,95519.0,95510.0,0.049]
[1739946109718,0.01640794,95519.0,95513.0,0.157046]
[1739946110105,0.01640794,95519.0,95512.0,0.157048]
[1739946110296,0.01640794,95519.0,95511.0,0.157049]
[1739946110500,0.01640794,95519.0,95510.0,0.05]
[1739946110906,0.01640794,95519.0,95511.0,0.209399]
[1739946111117,0.01640794,95519.0,95511.0,0.0808]
[1739946111322,0.01640794,95519.0,95513.0,0.0808]
[1739946111735,0.01640794,95519.0,95518.0,0.157038]
[1739946112094,0.01640794,95519.0,95513.0,0.0808]
[1739946112095,0.01640794,95519.0,95514.0,0.00104688]
[1739946112290,0.01640794,95519.0,95518.0,0.233338]
[1739946112464,0.01640794,95519.0,95518.0,0.280238]
[1739946112686,0.02040794,95519.0,95518.0,0.280238]
[1739946113257,0.004,95519.0,95518.0,0.1232]
[1739946113468,0.004,95519.0,95518.0,0.1798]
[1739946113630,0.209356,95531.0,95518.0,0.1798]
[1739946113839,0.157018,95530.0,95519.0,0.157036]
[1739946114035,0.157018,95530.0,95520.0,0.157035]
[1739946114235,0.0004255,95519.0,95518.0,0.280238]
[1739946115854,0.0014255,95519.0,95518.0,0.280238]
[1739946116252,0.01640572,95519.0,95518.0,0.1232]
[1739946116527,0.01640572,95519.0,95518.0,0.28128481]
[1739946116705,0.01640572,95519.0,95518.0,0.280238]
[1739946121966,0.01740572,95519.0,95518.0,0.280238]
[1739946123289,0.001,95519.0,95518.0,0.280238]
[1739946126399,0.01740609,95519.0,95518.0,0.280238]
[1739946127246,0.01740609,95519.0,95518.0,0.38274165]
[1739946132285,0.01640609,95519.0,95518.0,0.38274165]
[1739946132488,0.01640609,95519.0,95518.0,0.38374165]
[1739946132623,0.01640609,95519.0,95518.0,0.70834165]
[1739946133037,0.01640609,95519.0,95518.0,0.70734165]
[1739946134296,0.01640609,95519.0,95518.0,0.71034165]
[1739946135125,0.01640609,95519.0,95518.0,0.71704934]
[1739946138002,0.01640609,95519.0,95518.0,0.71789994]
[1739946140874,0.01640609,95519.0,95518.0,0.72573342]
[1739946142033,0.01640609,95519.0,95518.0,0.75706931]
[1739946142483,0.15,95559.0,95519.0,0.1252]
[1739946142711,0.00776506,95565.0,95542.0,0.156998]
[1739946142712,0.15,95549.0,95542.0,0.156998]
[1739946143058,0.15,95549.0,95542.0,0.156997]
[1739946143608,0.15,95547.0,95540.0,0.157002]
[1739946143822,0.15,95547.0,95539.0,0.288636]
[1739946144034,0.15013107,95547.0,95540.0,0.157002]
[1739946144234,0.15013107,95547.0,95541.0,0.157]
[1739946144377,0.15013107,95547.0,95542.0,0.001]
[1739946144582,0.00013107,95547.0,95542.0,0.157998]
[1739946144785,0.00013107,95547.0,95542.0,0.156998]
[1739946144998,0.15313107,95547.0,95542.0,0.156998]
[1739946145644,0.15613107,95547.0,95541.0,0.157]
[1739946146091,0.15613107,95547.0,95543.0,0.02070243]
[1739946146558,0.00613107,95547.0,95539.0,0.0793]
[1739946146727,0.15,95545.0,95539.0,0.236303]
[1739946146928,0.15,95545.0,95540.0,0.157001]
[1739946147130,0.01640414,95544.0,95539.0,0.0793]
[1739946147360,0.01640414,95544.0,95539.0,0.0205157]
[1739946147569,0.01640414,95544.0,95543.0,0.156997]
[1739946147770,0.01640414,95544.0,95543.0,0.33900065]
[1739946148624,0.01940414,95544.0,95543.0,0.33900065]
[1739946148812,0.01640414,95544.0,95543.0,0.33900065]
[1739946149474,0.01640414,95544.0,95543.0,0.38670065]
[1739946150115,0.01940414,95544.0,95543.0,0.38670065]
[1739946150319,0.01940414,95544.0,95543.0,0.71130065]
[1739946150535,0.01640414,95544.0,95543.0,0.71130065]
[1739946150716,0.01940414,95544.0,95543.0,0.71130065]
[1739946150913,0.01682944,95544.0,95543.0,0.71130065]
[1739946151129,0.0004253,95544.0,95543.0,1.28000065]
[1739946151329,0.01639976,95558.0,95547.0,0.082]
[1739946151557,0.01639976,95558.0,95557.0,0.287074]
[1739946151763,0.01639976,95558.0,95557.0,0.38957765]
[1739946153201,0.00043712,95580.0,95557.0,0.15060365]
[1739946153356,0.00043712,95580.0,95574.0,0.156945]
[1739946153560,0.00043712,95580.0,95572.0,0.0819]
[1739946153756,0.0004257,95599.0,95572.0,0.0819]
[1739946153969,0.156931,95584.0,95575.0,0.156943]
[1739946154339,0.26770545,95595.0,95576.0,0.10354987]
[1739946154340,0.01478945,95595.0,95576.0,0.10354987]
[1739946154544,0.01478945,95595.0,95576.0,0.31280687]
[1739946154754,0.156918,95592.0,95582.0,0.156932]
[1739946154933,0.156918,95592.0,95579.0,0.209248]
[1739946154934,0.156918,95592.0,95583.0,0.15693]
[1739946155274,0.156918,95592.0,95584.0,0.156929]
[1739946155471,0.209218,95594.0,95581.0,0.209246]
[1739946155472,0.156918,95591.0,95581.0,0.156933]
[1739946155829,0.15692,95590.0,95581.0,0.156934]
[1739946156331,0.002,95584.0,95582.0,0.156933]
[1739946156511,0.01639582,95588.0,95582.0,0.156933]
[1739946157502,0.002,95584.0,95576.0,0.10250365]
[1739946157710,0.01639582,95588.0,95581.0,0.156934]
[1739946158470,0.01639582,95588.0,95582.0,0.156932]
[1739946158673,0.01739582,95588.0,95582.0,0.157932]
[1739946159284,0.01739582,95588.0,95582.0,0.001]
[1739946159491,0.14247256,95605.0,95582.0,0.001]
[1739946159691,0.156931,95584.0,95582.0,0.00113108]
[1739946159989,0.156931,95584.0,95582.0,0.00013108]
[1739946160602,0.156931,95583.0,95582.0,0.00013108]
[1739946162002,0.158931,95583.0,95582.0,0.00013108]
[1739946163329,0.156931,95583.0,95582.0,0.00013108]
[1739946166705,0.157931,95583.0,95582.0,0.00013108]
[1739946167934,0.01739637,95583.0,95582.0,0.00013108]
[1739946169616,0.01639637,95583.0,95582.0,0.00013108]
[1739946170125,0.01739637,95583.0,95582.0,0.00013108]
[1739946173196,0.001,95583.0,95582.0,0.00013108]
[1739946173961,0.001,95583.0,95582.0,0.00098108]
[1739946177286,0.157931,95583.0,95582.0,0.00098108]
[1739946177685,0.17432789,95583.0,95582.0,0.00098108]
[1739946180159,0.01739689,95583.0,95582.0,0.07738108]
[1739946182619,0.17432789,95583.0,95582.0,0.07738108]
[1739946182838,0.17432789,95583.0,95582.0,0.00098108]
[1739946183047,0.01739689,95583.0,95582.0,0.00098108]
[1739946183248,0.001,95583.0,95582.0,0.00098108]
[1739946183604,0.157931,95583.0,95582.0,0.00098108]
[1739946187586,0.17432788,95583.0,95582.0,0.00098108]
[1739946193237,0.157931,95583.0,95582.0,0.00098108]
[1739946196288,0.17432737,95583.0,95582.0,0.00098108]
[1739946199672,0.32432737,95583.0,95582.0,0.00098108]
[1739946203236,0.307931,95583.0,95582.0,0.00098108]
[1739946206509,0.32332821,95583.0,95582.0,0.00098108]
[1739946206714,0.32432821,95583.0,95582.0,0.00098108]
[1739946207511,0.32332821,95583.0,95582.0,0.00098108]
[1739946207860,0.32432821,95583.0,95582.0,0.00098108]
[1739946208058,0.32332821,95583.0,95582.0,0.00098108]
[1739946208408,0.32432821,95583.0,95582.0,0.00098108]
[1739946209805,0.32332821,95583.0,95582.0,0.00098108]
[1739946210080,0.32432821,95583.0,95582.0,0.00098108]
[1739946213182,0.307931,95583.0,95582.0,0.00098108]
[1739946217637,0.32432831,95583.0,95582.0,0.00098108]
[1739946218958,0.01739731,95583.0,95582.0,0.00098108]
[1739946219761,0.17432831,95583.0,95582.0,0.00098108]
[1739946223235,0.157931,95583.0,95582.0,0.00098108]
[1739946226327,0.17432872,95583.0,95582.0,0.00098108]
[1739946231912,0.32432872,95583.0,95582.0,0.00098108]
[1739946233358,0.307931,95583.0,95582.0,0.00098108]
[1739946233520,0.3083565,95583.0,95582.0,0.00098108]
[1739946237913,0.32475373,95583.0,95582.0,0.00098108]
[1739946239072,0.42725738,95583.0,95582.0,0.00098108]
[1739946239279,0.42725738,95583.0,95567.0,0.0805]
[1739946239280,0.306956,95568.0,95567.0,0.0805]
[1739946239551,0.156964,95563.0,95562.0,0.0479]
[1739946240013,0.17336298,95563.0,95562.0,0.0479]
[1739946240689,0.19138043,95563.0,95562.0,0.0479]
[1739946242156,0.19138043,95563.0,95562.0,0.0489]
[1739946243120,0.34138043,95563.0,95562.0,0.0489]
[1739946243318,0.32498145,95563.0,95562.0,0.0489]
[1739946244767,0.32498145,95563.0,95562.0,0.049751]
[1739946246389,0.34138135,95563.0,95562.0,0.049751]
[1739946253377,0.32498145,95563.0,95562.0,0.049751]
[1739946254743,0.15,95564.0,95562.0,0.049751]
[1739946254960,0.156964,95563.0,95562.0,0.049751]
[1739946256731,0.156964,95563.0,95562.0,0.001851]
[1739946256871,0.32344458,95563.0,95562.0,0.001851]
[1739946257452,0.33984721,95563.0,95562.0,0.000851]
[1739946257655,0.34184721,95563.0,95562.0,0.000851]
[1739946258517,0.44435086,95563.0,95562.0,0.000851]
[1739946259243,0.306984,95551.0,95550.0,0.0761]
[1739946259653,0.156995,95544.0,95543.0,0.0460502]
[1739946260567,0.156995,95544.0,95543.0,0.04648732]
[1739946262091,0.159995,95544.0,95543.0,0.04648732]
[1739946263562,0.156995,95544.0,95543.0,0.04648732]
[1739946263762,0.158995,95544.0,95543.0,0.04648732]
[1739946267817,0.17539962,95544.0,95543.0,0.04648732]
[1739946269085,0.1261502,95546.0,95543.0,0.04648732]
[1739946269285,0.156995,95544.0,95543.0,0.04648732]
[1739946269531,0.17539925,95544.0,95543.0,0.04648732]
[1739946271596,0.17339925,95544.0,95543.0,0.04648732]
[1739946272093,0.17539925,95544.0,95543.0,0.04648732]
[1739946273215,0.158995,95544.0,95543.0,0.04648732]
[1739946276214,0.1753994,95544.0,95543.0,0.04648732]
[1739946280103,0.1758251,95544.0,95543.0,0.04648732]
[1739946281051,0.1758251,95544.0,95543.0,0.12378732]
[1739946281843,0.1738251,95544.0,95543.0,0.12378732]
[1739946282249,0.1758251,95544.0,95543.0,0.12378732]
[1739946283270,0.1594207,95544.0,95543.0,0.12378732]
[1739946284119,0.1574207,95544.0,95543.0,0.12378732]
[1739946284533,0.1594207,95544.0,95543.0,0.12378732]
[1739946286270,0.17582491,95544.0,95543.0,0.12378732]
[1739946287296,0.17382491,95544.0,95543.0,0.12378732]
[1739946288125,0.17582491,95544.0,95543.0,0.12378732]
[1739946293203,0.1594207,95544.0,95543.0,0.12378732]
[1739946295102,0.0024257,95544.0,95543.0,0.12378732]
[1739946296383,0.01882975,95544.0,95543.0,0.12378732]
[1739946296825,0.01682975,95544.0,95543.0,0.12378732]
[1739946298174,0.01682975,95544.0,95543.0,0.12478732]
[1739946298379,0.01682975,95544.0,95543.0,0.12378732]
[1739946298789,0.17382475,95544.0,95543.0,0.12378732]
[1739946299704,0.17382475,95544.0,95543.0,0.12478732]
[1739946300494,0.01682975,95544.0,95543.0,0.12478732]
[1739946300719,0.17382475,95544.0,95543.0,0.12478732]
[1739946302297,0.1574207,95544.0,95543.0,0.12378732]
[1739946302535,0.35932,95548.0,95543.0,0.12378732]
[1739946302777,0.156995,95544.0,95543.0,0.12378732]
[1739946303470,0.1574207,95544.0,95543.0,0.12378732]
[1739946304116,0.1584207,95544.0,95543.0,0.12378732]
[1739946304808,0.1574207,95544.0,95543.0,0.12378732]
[1739946305643,0.17382517,95544.0,95543.0,0.12378732]
[1739946313383,0.1574207,95544.0,95543.0,0.0951101]
[1739946314657,0.1574207,95544.0,95543.0,0.0959615]
[1739946315952,0.0004257,95544.0,95543.0,0.0959615]
[1739946316551,0.01683005,95544.0,95543.0,0.0959615]
[1739946317543,0.01683005,95544.0,95543.0,0.0969615]
[1739946323302,0.0004257,95544.0,95543.0,0.0969615]
[1739946323958,0.0004257,95544.0,95543.0,0.2539585]
[1739946324360,0.0004257,95544.0,95543.0,0.35646215]
[1739946326050,0.0004257,95544.0,95543.0,0.68106215]
[1739946326702,0.0004257,95544.0,95543.0,0.68006215]
[1739946326910,0.0004257,95544.0,95543.0,0.68406215]
[1739946327122,0.0004257,95547.0,95546.0,0.236592]
[1739946327364,0.0004257,95547.0,95546.0,0.47164029]
[1739946329653,0.0004257,95547.0,95546.0,0.47764029]
[1739946331655,0.0004257,95547.0,95546.0,0.80224029]
[1739946333430,0.0004257,95547.0,95546.0,0.79624029]
[1739946333668,0.0004257,95547.0,95546.0,0.82000969]
[1739946333977,0.0004257,95547.0,95546.0,0.81700969]
[1739946334361,0.0004257,95547.0,95546.0,0.82000969]
[1739946334570,0.0004257,95547.0,95546.0,0.81700969]
[1739946334772,0.0004257,95547.0,95546.0,0.82100969]
[1739946336352,0.0004257,95547.0,95546.0,0.81700969]
[1739946336571,0.0004257,95547.0,95546.0,0.82200969]
[1739946336804,0.0004257,95547.0,95546.0,0.81700969]
[1739946337224,0.0004257,95547.0,95546.0,0.82200969]
[1739946337448,0.0004257,95547.0,95546.0,0.81700969]
[1739946337860,0.0004257,95547.0,95546.0,0.82200969]
[1739946338066,0.0004257,95547.0,95546.0,0.81700969]
[1739946339258,0.0004257,95547.0,95546.0,0.82200969]
[1739946340307,0.0004257,95547.0,95546.0,0.81700969]
[1739946340490,0.0004257,95547.0,95546.0,0.82200969]
[1739946340696,0.0004257,95547.0,95546.0,0.81700969]
[1739946341072,0.0004257,95547.0,95546.0,0.82200969]
[1739946348889,0.0004255,95582.0,95548.0,0.0796]
[1739946349091,0.156945,95575.0,95553.0,0.0811]
[1739946349292,0.156945,95575.0,95568.0,0.0811]
[1739946349656,0.156943,95576.0,95568.0,0.0811]
[1739946349859,0.01550764,95576.0,95568.0,0.0811]
[1739946350105,0.15694,95578.0,95568.0,0.0811]
[1739946350507,0.209247,95581.0,95568.0,0.0811]
[1739946350725,0.156939,95578.0,95568.0,0.0811]
[1739946350927,0.306938,95580.0,95569.0,0.156953]
[1739946351130,0.15,95580.0,95568.0,0.0811]
[1739946351453,0.15,95580.0,95570.0,0.156951]
[1739946351816,0.004,95575.0,95570.0,0.156951]
[1739946352018,0.15,95580.0,95570.0,0.156951]
[1739946352019,0.01596402,95576.0,95570.0,0.156951]
[1739946352245,0.15,95580.0,95570.0,0.156951]
[1739946352448,0.155,95580.0,95570.0,0.156951]
[1739946352770,0.005,95580.0,95569.0,0.258472]
[1739946352973,0.003,95575.0,95574.0,0.156946]
[1739946353178,0.01559019,95580.0,95573.0,0.156948]
[1739946353381,0.01559019,95580.0,95569.0,0.0492]
[1739946353583,0.005,95580.0,95577.0,0.156941]
[1739946353807,0.02048116,95580.0,95574.0,0.209259]
[1739946354007,0.02048116,95580.0,95576.0,0.156943]
[1739946354215,0.00513096,95580.0,95576.0,0.156941]
[1739946354575,0.00513096,95580.0,95572.0,0.22986222]
[1739946354776,0.00513096,95580.0,95574.0,0.156944]
[1739946354978,0.00013096,95580.0,95574.0,0.156946]
[1739946355443,0.003,95575.0,95572.0,0.17754422]
[1739946355643,0.00013096,95580.0,95572.0,0.17754422]
[1739946355644,0.00013096,95580.0,95573.0,0.156947]
[1739946355793,0.02095451,95580.0,95573.0,0.156947]
[1739946355993,0.00513096,95580.0,95572.0,0.02059622]
[1739946356196,0.00513096,95580.0,95573.0,0.156948]
[1739946356645,0.00013096,95580.0,95573.0,0.156948]
[1739946356850,0.01598566,95580.0,95572.0,0.02059622]
[1739946357058,0.00013096,95580.0,95572.0,0.02059622]
[1739946357262,0.00013096,95580.0,95572.0,0.17754522]
[1739946357595,0.01593271,95580.0,95572.0,0.17754522]
[1739946357815,0.00013096,95580.0,95573.0,0.156948]
[1739946358231,0.00513096,95580.0,95573.0,0.156948]
[1739946358898,0.00013096,95580.0,95573.0,0.156948]
[1739946359072,0.00513096,95580.0,95573.0,0.156948]
[1739946359274,0.00013096,95580.0,95572.0,0.17754522]
[1739946359606,0.00513096,95580.0,95572.0,0.17754522]
[1739946360218,0.02078008,95580.0,95573.0,0.156947]
[1739946360447,0.02078008,95580.0,95572.0,0.02059622]
[1739946360646,0.02078008,95580.0,95572.0,0.17754522]
[1739946360846,0.01578008,95580.0,95572.0,0.17754522]
[1739946361249,0.02078008,95580.0,95572.0,0.17754522]
[1739946361547,0.02078008,95580.0,95573.0,0.156947]
[1739946361788,0.02078008,95580.0,95572.0,0.02059622]
[1739946361992,0.02078008,95580.0,95573.0,0.156947]
[1739946362711,0.01620558,95580.0,95573.0,0.156947]
[1739946362916,0.02120558,95580.0,95573.0,0.156947]
[1739946363757,0.02120558,95580.0,95572.0,0.02059622]
[1739946363958,0.02120558,95580.0,95572.0,0.156949]
[1739946364975,0.01620558,95580.0,95572.0,0.156949]
[1739946365170,0.01620558,95580.0,95573.0,0.156947]
[1739946365370,0.02120558,95580.0,95573.0,0.156947]
[1739946366073,0.01620558,95580.0,95573.0,0.156947]
[1739946367389,0.02120558,95580.0,95573.0,0.156947]
[1739946368791,0.02120558,95580.0,95570.0,0.20927]
[1739946369156,0.02120558,95580.0,95573.0,0.156947]
[1739946369560,0.17814258,95580.0,95571.0,0.15695]
[1739946369780,0.02120558,95580.0,95569.0,0.0492]
[1739946369984,0.156938,95579.0,95570.0,0.156952]
[1739946370273,0.17814158,95580.0,95571.0,0.15695]
[1739946370478,0.01620558,95580.0,95572.0,0.156949]